Cogmind - Beta 14 @@@ ROGUE MODE // 2025.01.19 @ 00:18:21 Player: Zaros426 Result: Destroyed by L-61 Swordsman with Power Sword Performance ------------- Evolutions (6) 3000 Regions Visited (27) 5400 Robots Destroyed (491) 2455 Value Destroyed (17711) 17711 Prototype IDs (94) 1880 Alien Tech Used (2) 400 Bonus (5117) 5117 TOTAL SCORE: 35963 Bonus ------- High Alert Combat Kills 1664 Follower Combat Kills 1276 Network Hubs Disabled 400 Aligned with FarCom 300 Met Data Miner 300 Met Zhirov 300 Met Warlord at Base 500 MAIN.C Attacked Warlord 500 Warlord Defense Kills 240 Met R17 at Cetus 500 Friendly Fire -863 Cogmind --------- Core Integrity 0/1150 Matter 225/300 Energy 63/170 System Corruption 2% Temperature Warning (304) Movement Walking (330) Ox3 Location -3/Proximity Caves Parts ------- > --- POWER (2) -------- Light Antimatter Reactor > --- PROPULSION (5) --- Flexi-carbon Leg > --- UTILITY (7) ------ High-capacity Storage Unit Experimental Optical Array 0b10 Decoder Chip [Skirmisher] Experimental Core Analyzer Improved Hacking Suite Advanced System Shield > --- WEAPON (5) ------- Vortex Rifle Vortex Driver > --- INVENTORY (20) --- Advanced Heat Sink Huge Storage Unit Energy Well (350) Improved Matter Compressor (300) Advanced Terrain Scanner Advanced Particle Charger Improved Weapon Cycler Improved Weapon Cycler Makeshift ECM Suite High-powered Tractor Beam Phase Gun Improved Remote Datajack Improved Plasma Cutter CPS Tube (2) Peak State ------------ > --- POWER ------------ Neutrino Core Antimatter Reactor > --- PROPULSION ------- Myomer Leg Myomer Leg Myomer Leg Potential Leg Potential Leg > --- UTILITY ---------- Huge Storage Unit Advanced Targeting Computer Experimental Core Analyzer Quantum Capacitor Improved Hacking Suite Drone Bay > --- WEAPON ----------- Variable Charge Gun Quantum Rifle Neutron Cannon Railgun Hypervelocity Mass Driver > --- INVENTORY -------- Centrium Heavy Treads Advanced Cooling System High-capacity Storage Unit Energy Well Improved Matter Compressor Advanced Terrain Scanner Improved Armor Integrity Analyzer Advanced Particle Charger Improved Weapon Cycler Improved Weapon Cycler Makeshift ECM Suite Layered Heavy Armor Plating Force Field System Shield Advanced System Shield High-powered Tractor Beam Mini Drone Bay Transdimensional Reconstructor Firepult Improved Remote Datajack Improved Plasma Cutter CPS Tube [Rating: 142] Favorites ----------- Power Neutrino Core Engine Heavy Deuterium Engine Power Core Neutrino Core Reactor Quantum Reactor Propulsion Light Treads Treads Light Treads Leg Potential Leg Wheel Armored Huge Wheel Hover Unit Hover Unit Flight Unit Flight Unit Utility Improved Hacking Suite Device Hardlight Generator Storage High-capacity Storage Unit Processor Advanced Targeting Computer Hackware Improved Hacking Suite Protection Hardened Light Armor Plating Weapon Heavy Machine Gun Energy Gun Plasma Rifle Energy Cannon Neutron Cannon Ballistic Gun Heavy Machine Gun Ballistic Cannon Magnetic Acceleration Cannon Launcher Rocket Launcher Special Weapon Improved Remote Datajack Impact Weapon Impact Mace Slashing Weapon Katana Special Melee Weapon Datajack Build | -11 -10 -10 -9 -9 -9 -8 -8 -7 -7 -7 -7 -6 -6 -6 -6 -6 -6 -5 -5 -5 -5 -4 -4 -4 -4 -4 -3 ------- Run | Yrd Mat Min Mat Min Exi Min Mat Fac Low Low Dat Pro Fac Ext Cet Arc Hub Fac Upp Upp Zhi Pro Fac Upp Upp War Pro Slots Evolved 12 | . . . 2 . . . 2 2 . . . . 2 . . . . 2 . . . . 2 . . . . Power 1 | . . . . . . . . . . . . . . . . . . 1 . . . . . . . . . Propulsion 3 | . . . . . . . 2 . . . . . . . . . . . . . . . 1 . . . . Utility 5 | . . . . . . . . 2 . . . . 2 . . . . 1 . . . . . . . . . Weapon 3 | . . . 2 . . . . . . . . . . . . . . . . . . . 1 . . . . Parts Attached 526 | 7 12 4 48 . 22 4 47 30 8 9 11 5 19 18 12 9 40 56 10 2 14 6 27 15 35 49 7 Power 47 | 1 2 . 4 . 1 . 4 3 3 . . . . 2 1 . 3 6 1 . . 1 1 2 4 7 1 Engine 18 | 1 1 . 4 . 1 . 3 2 2 . . . . . . . . 3 . . . . . . . . 1 Core 17 | . 1 . . . . . 1 1 1 . . . . 2 . . . 3 1 . . 1 1 1 3 1 . Reactor 12 | . . . . . . . . . . . . . . . 1 . 3 . . . . . . 1 1 6 . Propulsion 119 | 2 1 2 11 . 3 2 23 6 1 1 2 . 7 5 2 . 7 5 1 . 1 1 9 5 9 13 . Treads 74 | 2 1 2 11 . 1 2 20 5 . . . . 4 5 2 . 1 5 . . . . 5 . 3 5 . Leg 33 | . . . . . 2 . . . 1 . 2 . . . . . 4 . 1 . 1 1 4 5 4 8 . Wheel 7 | . . . . . . . . . . 1 . . 2 . . . 2 . . . . . . . 2 . . Hover 4 | . . . . . . . 2 1 . . . . 1 . . . . . . . . . . . . . . Flight 1 | . . . . . . . 1 . . . . . . . . . . . . . . . . . . . . Utility 138 | 1 5 . 6 . 5 2 5 4 2 1 1 4 8 3 4 7 15 20 3 . 4 4 10 2 11 9 2 Device 74 | . . . 1 . 2 . 3 1 2 1 1 3 5 2 1 1 5 15 2 . 3 3 7 2 7 6 1 Storage 19 | 1 2 . 1 . 2 . 1 1 . . . 1 1 . 1 . 3 1 . . . 1 2 . 1 . . Processor 14 | . 2 . . . . 1 . 2 . . . . 1 . 1 . 1 . 1 . . . 1 . 1 2 1 Hackware 6 | . . . 2 . . . . . . . . . 1 . . . 2 . . . . . . . . 1 . Protection 25 | . 1 . 2 . 1 1 1 . . . . . . 1 1 6 4 4 . . 1 . . . 2 . . Artifact . | . . . . . . . . . . . . . . . . . . . . . . . . . . . . Weapon 222 | 3 4 2 27 . 13 . 15 17 2 7 8 1 4 8 5 2 15 25 5 2 9 . 7 6 11 20 4 Energy Gun 50 | 1 3 1 7 . . . 1 3 1 . . . 2 3 1 . 4 7 . 1 1 . 1 1 4 7 1 Energy Cannon 41 | . . . . . 1 . 1 1 . 2 4 . . 2 . . 2 9 1 . 1 . 6 1 3 5 2 Ballistic Gun 91 | 2 1 . 19 . 8 . 10 7 1 3 3 1 1 3 4 2 4 5 3 1 6 . . 3 1 3 . Ballistic Cannon 14 | . . 1 . . . . 3 3 . 1 1 . . . . . . 1 1 . . . . 1 1 1 . Launcher 1 | . . . . . 1 . . . . . . . . . . . . . . . . . . . . . . Special Weapon 6 | . . . . . . . . . . . . . . . . . . . . . 1 . . . 1 3 1 Impact Weapon 12 | . . . . . . . . 3 . 1 . . . . . . 5 3 . . . . . . . . . Slashing Weapon 5 | . . . 1 . 2 . . . . . . . . . . . . . . . . . . . 1 1 . Piercing Weapon . | . . . . . . . . . . . . . . . . . . . . . . . . . . . . Special Melee Weapon 2 | . . . . . 1 . . . . . . . 1 . . . . . . . . . . . . . . Unidentified Prototypes 26 | . . . 1 . . . 3 5 . . 2 . . . 4 . . 1 . . 2 . . . . 7 1 Parts Lost 131 | . 5 5 9 . 2 . 6 1 4 2 2 2 3 7 3 1 10 9 1 . . . 8 2 19 21 9 Power 21 | . 1 1 1 . 1 . . . 1 . . . . 1 . . 2 3 . . . . . . 5 4 1 Propulsion 40 | . 1 2 3 . . . . . 2 1 2 . . 3 . . 2 2 . . . . 3 1 6 8 4 Utility 25 | . 1 . 1 . . . 2 . . . . 2 1 1 2 . 1 3 1 . . . 2 1 1 5 1 Weapon 45 | . 2 2 4 . 1 . 4 1 1 1 . . 2 2 1 1 5 1 . . . . 3 . 7 4 3 Highest Loss Streak 19 | . 3 2 7 . 2 . 2 1 3 1 2 1 3 3 2 1 9 4 1 . . . 5 2 9 19 7 To Critical Strikes 4 | . . . . . 2 . . . . . . . . . . . . . . . . . . . . 1 1 Average Slot Usage (%) 90 | . 95 97 95 100 83 99 98 99 95 90 75 91 89 95 85 85 83 86 93 88 70 94 82 89 77 71 88 Engine 4 | . 9 12 10 11 10 11 8 6 6 7 7 7 6 . . . . 2 . . . . . . . 2 2 Core 2 | . 2 . . . . . . . . . . . . 5 1 . . 2 10 11 11 11 10 5 4 3 . Treads 16 | . 28 27 21 22 20 22 34 29 26 11 4 . 12 24 15 13 10 11 11 11 11 11 14 . 2 5 5 Leg 4 | . . . . . 1 . . . 1 7 7 15 . . . . 2 6 4 . 3 5 3 21 14 3 14 Device 7 | . . . 1 . 1 . 7 7 7 7 7 11 20 19 12 7 3 8 11 11 10 11 10 9 8 9 5 Storage 7 | . 14 14 11 11 11 11 9 9 7 7 7 7 6 6 6 6 6 5 5 5 5 5 5 5 5 5 5 Processor 8 | . 10 14 . . . . . 12 15 15 15 10 6 6 6 13 18 11 10 11 11 11 10 10 10 9 14 Hackware 4 | . . . 5 11 9 . . . . . . . 3 6 4 . 7 11 11 11 11 11 7 5 5 5 10 Protection 1 | . . . 3 . . 10 1 . . . . . . . 4 11 3 1 . . . . . . 1 . . Energy Gun 3 | . 14 14 4 . . . . 4 . . . . 2 9 10 6 5 3 . . . . 2 5 7 6 8 Energy Cannon 3 | . . . . . 1 . . 6 5 4 5 15 10 2 . . . 7 . . . . 4 5 4 7 7 Ballistic Gun 17 | . 13 . 35 44 16 33 32 15 14 16 6 7 10 11 14 19 16 3 22 22 1 23 12 10 5 3 5 Ballistic Cannon 1 | . . 13 1 . . . 1 1 7 7 4 6 . . . . . . . . . . . 4 . . . Peak Build Rating 142 | 6 12 10 24 21 44 44 33 53 52 57 69 73 78 82 123 128 126 126 112 100 113 110 132 142 136 136 120 Average Rating 66 | 5 8 9 19 21 22 27 29 47 50 52 52 70 74 74 106 122 113 103 108 99 86 109 113 133 98 76 113 On Entrance 67 | . 6 10 8 21 21 44 27 32 51 47 55 69 71 77 73 123 126 103 99 108 99 110 110 114 133 62 89 Naked Turns . | . . . . . . . . . . . . . . . . . . . . . . . . . . . . Heaviest Build 163 | 11 30 31 45 40 98 46 69 75 75 78 88 126 123 80 131 137 136 114 98 98 101 142 163 159 158 144 120 Greatest Support 160 | 40 40 40 40 40 60 60 80 82 82 42 56 28 88 92 160 160 160 136 103 103 103 103 154 135 130 115 60 Greatest Overweight (x) 12 | . . . 1 . 2 1 1 1 1 3 3 4 4 1 . . 7 1 . . . 1 1 1 11 12 1 Average Overweight (x) . | . . . . . . . . . . 1 1 3 1 . . . . . . . . . . 1 3 5 1 Largest Inventory Capacity 25 | 8 15 15 15 15 25 15 20 20 20 20 20 25 25 20 25 25 25 20 20 20 20 25 25 25 25 20 20 Average Capacity 19 | 7 9 15 15 15 16 15 17 20 20 20 20 24 22 20 21 25 24 20 20 20 20 20 24 25 22 20 20 Most Carried 25 | 3 10 11 15 15 20 15 20 20 20 20 20 25 25 20 25 25 25 20 20 20 20 22 25 25 25 20 19 Average Carried 18 | 1 7 9 13 15 15 14 17 19 19 19 19 23 22 19 20 24 23 19 19 20 19 20 22 24 22 19 15 Final Capacity 25 | 8 15 15 15 15 15 15 20 20 20 20 20 25 20 20 25 25 20 20 20 20 20 25 25 25 20 20 20 Final Carried 25 | 3 10 8 15 15 15 15 19 19 19 20 20 25 20 19 25 25 17 20 19 20 20 22 25 24 20 19 14 Class Distribution -------------------- 47% | Scavenger-Gunner 22% | Gunner 12% | Scavenger-Tank 8% | Scavenger-Mutant 4% | Mutant Dominant Class ---------------- Scavenger-Mutant | -10/Materials Scavenger-Mutant | -10/Mines Gunner | -9/Materials Scavenger-Gunner | -9/Mines Mutant | -9/Exiles Scavenger-Tank | -8/Mines Scavenger-Tank | -8/Materials Gunner | -7/Factory Gunner | -7/Lower Caves Gunner | -7/Lower Caves Gunner | -7/Data Miner Scavenger-Gunner | -6/Proximity Caves Derelict-Gunner | -6/Factory Scavenger-Gunner | -6/Extension Scavenger-Gunner | -6/Cetus Scavenger-Gunner | -6/Archives Scavenger-Gunner | -6/Hub_04(d) Scavenger-Gunner | -5/Factory Scavenger-Gunner | -5/Upper Caves Scavenger-Gunner | -5/Upper Caves Scavenger-Mutant | -5/Zhirov Scavenger-Gunner | -4/Proximity Caves Scavenger-Gunner | -4/Factory Scavenger-Gunner | -4/Upper Caves Scavenger-Gunner | -4/Upper Caves Scavenger-Gunner | -4/Warlord Scavenger-Gunner | -3/Proximity Caves Resources | -11 -10 -10 -9 -9 -9 -8 -8 -7 -7 -7 -7 -6 -6 -6 -6 -6 -6 -5 -5 -5 -5 -4 -4 -4 -4 -4 -3 ----------- Run | Yrd Mat Min Mat Min Exi Min Mat Fac Low Low Dat Pro Fac Ext Cet Arc Hub Fac Upp Upp Zhi Pro Fac Upp Upp War Pro Matter Collected 14482 | 300 555 145 1326 24 3 702 2001 878 583 460 126 200 289 439 347 361 1104 893 436 236 200 759 518 222 857 488 30 Remotely . | . . . . . . . . . . . . . . . . . . . . . . . . . . . . Salvage Created 21818 | 104 911 398 2765 45 57 394 3378 1533 545 409 368 275 842 826 338 491 1952 1972 419 301 . 280 1615 108 1400 58 34 Parts 1088 | 11 44 15 187 5 16 29 192 79 26 23 6 11 42 27 14 31 91 86 20 10 . 14 52 5 47 2 3 Haulers Intercepted 21 | . 2 . 5 . . . 6 2 . . . . 1 . . . 2 1 . . . . 2 . . . . Recyclers Shooed 13 | 1 4 2 1 . . . 1 1 . . . . 2 . . . . . . . . . 1 . . . . Parts Field Recycled 2 | . . . . . . . . . . . . . . . . . . . . . . 2 . . . . . Retrieved Matter 17 | . . . . . . . . . . . . . . . . . . . . . . 17 . . . . . Parts Self-Destructed 140 | . . . . . . . . . 17 16 . 9 . . . . . . 15 10 . 12 . 14 37 . 10 Prevented 12 | . . . . . . . . . 3 3 . 1 . . . . . . 2 . . . . 3 . . . Kills | -11 -10 -10 -9 -9 -9 -8 -8 -7 -7 -7 -7 -6 -6 -6 -6 -6 -6 -5 -5 -5 -5 -4 -4 -4 -4 -4 -3 ------- Run | Yrd Mat Min Mat Min Exi Min Mat Fac Low Low Dat Pro Fac Ext Cet Arc Hub Fac Upp Upp Zhi Pro Fac Upp Upp War Pro Combat Hostiles Destroyed 347 | . 18 6 41 . 7 4 41 18 15 12 4 7 13 13 5 4 24 33 10 8 . 6 26 2 27 1 2 Melee 6 | . . . . . . 1 . . . . . . . . . . . 1 . . . . . . 4 . . Guns 228 | . 17 2 37 . 1 3 41 13 3 9 . 1 5 9 5 4 24 11 7 8 . 6 7 1 13 . 1 Cannons 77 | . . 4 4 . . . . 5 12 3 . 5 8 3 . . . 15 . . . . 6 1 9 1 1 AOE 17 | . 1 . . . 6 . . . . . . 1 . . . . . 1 2 . . . 6 . . . . Classes Destroyed 26 | 2 5 1 4 . 1 1 2 1 . 1 . 1 . 1 . . . . . . . . 2 . 3 1 . Worker 33 | 1 1 . 6 . . 4 12 1 . . . . 1 . . . 4 3 . . . . . . . . . Builder 20 | . . 1 5 . . 1 5 1 . . . . 3 . . . . 2 . . . . 2 . . . . Tunneler 10 | 3 . . 1 2 . 3 . . . . . . . . . . . 1 . . . . . . . . . Hauler 21 | . 2 . 5 . . . 6 2 . . . . 1 . . . 2 1 . . . . 2 . . . . Recycler 30 | . 1 2 9 . . 2 11 4 . . . . . . . . . 1 . . . . . . . . . Minesweeper 1 | . . . . . . . . . . . . . . . . . . . . . . . . . 1 . . Mechanic 2 | . . . . . . . 1 1 . . . . . . . . . . . . . . . . . . . Operator 10 | . . . 2 . . . . . . . . . . . . 5 2 . . . . . 1 . . . . Drone 6 | . . . . . . . . . . . . 2 . . . . . . . . . 2 . . 1 . 1 Watcher 25 | . 3 . 5 . . . 5 2 . . . . . 1 1 . 5 2 . . . . 1 . . . . Swarmer 71 | . 3 . 5 . . 3 10 2 6 7 . 2 . 1 . . . 7 5 5 . . 6 . 9 . . Saboteur 1 | . . . . . . . . . . . . . . . . . . . . . . . . . 1 . . Grunt 146 | . 15 6 24 . . . 19 8 4 3 . 2 6 6 . . 15 14 1 1 . 1 8 . 12 . 1 Brawler 8 | . . . 1 . . . 2 . . . . . . . . . 1 1 . 1 . . . . 2 . . Duelist 4 | . . . 1 . . . 1 . . . . . . 1 . . 1 . . . . . . . . . . Protector 2 | . . . . . . . 1 . . . . . . . . . 1 . . . . . . . . . . Sentry 48 | . . . 10 . . . 8 2 1 1 . 1 2 2 . 4 5 3 1 1 . 1 3 1 2 . . Specialist 2 | . . . . . . . . . . . . . . . . . . . . . . . 2 . . . . Hunter 17 | . . . . . . 1 . . . . . . 3 2 . . . 4 2 . . 2 2 1 . . . Programmer 18 | . . . . . . . . 5 . 1 . . 2 . . . 1 4 1 . . . 4 . . . . Heavy 1 | . . . . . . . . . . . . . . . . . . . . . . . 1 . . . . Behemoth 1 | . . . . . . . . . . . . . . 1 . . . . . . . . . . . . . Cetus Guard 5 | . . . . . . . . . . . . . . . 5 . . . . . . . . . . . . Enhanced Grunt 4 | . . . . . . . . . . . 4 . . . . . . . . . . . . . . . . Executioner 1 | . . . . . . . . . . . . . . . . . . . . . . . . . . 1 . Decomposer 2 | . . . . . . . . . . . . . . . . . . . 1 . . 1 . . . . . Samaritan 3 | . . . . . . . . . . 1 . 1 . . . . . . . . . . . . 1 . . Master Thief 1 | . . . . . . . . . . . . . . . . . . . . . . . . . 1 . . Assembled 7 | . . . . . 7 . . . . . . . . . . . . . . . . . . . . . . Thug 5 | . . . . . . . . 1 4 . . . . . . . . . . . . . . . . . . Best Kill Streak 10 | 1 5 3 10 2 7 3 7 3 4 4 4 3 6 3 4 3 5 10 5 5 . 2 7 1 7 1 1 Combat Bots Only 7 | . 5 2 5 . 7 3 6 3 4 4 4 3 4 3 3 1 4 6 5 5 . 2 6 1 7 1 1 Max Kills in Single Turn 3 | 1 2 1 2 1 2 2 2 2 1 1 2 2 1 2 1 1 2 3 3 2 . 1 3 1 2 1 1 Gunslinging 2 | . . . 1 . . 1 1 . . . . . . 1 . . 1 . 2 1 . . . . . . . Exploded 2 | . 1 . . . 2 . . . . . . 1 . . . . . 1 2 . . . 2 . . . . Melee 1 | . . . . . . 1 . . . . . . . . . . . 1 . . . . . . 1 . . Uniques/NPCs Destroyed 1 | . . . . . 1 . . . . . . . . . . . . . . . . . . . . . . EX-DEC (-9/Exiles) Combat | -11 -10 -10 -9 -9 -9 -8 -8 -7 -7 -7 -7 -6 -6 -6 -6 -6 -6 -5 -5 -5 -5 -4 -4 -4 -4 -4 -3 -------- Run | Yrd Mat Min Mat Min Exi Min Mat Fac Low Low Dat Pro Fac Ext Cet Arc Hub Fac Upp Upp Zhi Pro Fac Upp Upp War Pro Hostile Shots Fired 2205 | . 110 36 190 . 39 12 160 104 92 84 8 12 94 88 56 18 170 207 18 15 . 18 110 60 194 253 57 Missed 593 | . 29 8 40 . 9 2 37 39 22 23 2 2 27 33 7 7 45 48 5 3 . 7 34 16 47 83 18 Damage Taken 28300 | . 1035 404 1765 . 466 108 1558 752 761 520 368 124 810 909 1314 257 3354 3170 263 250 . 228 1765 702 3041 3633 743 Core 3410 | . 134 94 192 . 15 23 162 86 46 82 137 12 69 63 107 . 568 326 51 60 . . 228 28 315 492 120 Absorbed by Shields 1351 | . . . . . . . 276 186 280 244 11 43 . . . . . . . . . . . . . 207 104 Reduced by Siege Mode 78 | . . . . . . . . . . . . . . . . . 11 38 . 14 . 8 7 . . . . Regen/Repaired (Parts) 897 | . 78 . . . . . . . . . . . . . . . . 774 . . . . . . . 45 . Core Remaining (%) 47 | 100 . 8 . . . 42 70 . . . . 48 . . . . 5 . . . . 56 . . . . . Volleys Fired 1041 | 15 89 29 125 2 7 16 143 52 32 26 4 11 29 41 23 24 89 64 6 12 . 17 75 18 53 23 16 Largest 5 | 2 2 2 4 4 3 3 4 4 4 4 3 4 4 4 4 4 4 4 4 4 . 4 5 5 5 5 5 Hottest 475 | 40 105 105 191 92 69 69 144 177 170 169 333 236 269 269 335 183 250 430 310 225 . 120 475 299 408 361 353 Shots Fired 3013 | 30 172 54 399 8 15 49 534 172 109 84 7 45 96 121 65 87 261 184 25 45 . 69 125 30 166 30 31 Gun 2446 | 30 172 26 365 8 12 49 501 133 64 47 1 11 61 97 65 87 260 98 24 45 . 69 62 10 119 9 21 Cannon 558 | . . 28 34 . . . 33 39 45 37 6 34 35 24 . . 1 86 1 . . . 63 20 45 19 8 Launcher 3 | . . . . . 3 . . . . . . . . . . . . . . . . . . . . . . Special 6 | . . . . . . . . . . . . . . . . . . . . . . . . . 2 2 2 Kinetic 2125 | 30 110 28 274 8 12 49 525 118 97 72 2 22 34 59 55 69 186 65 24 44 . 69 58 14 85 6 10 Thermal 693 | . 34 26 125 . . . 9 . . . 4 11 55 48 10 18 62 103 1 1 . . 67 16 79 16 8 Explosive 3 | . . . . . 3 . . . . . . . . . . . . . . . . . . . . . . Electromagnetic 169 | . 28 . . . . . . 54 12 12 1 12 7 14 . . 13 16 . . . . . . . . . Entropic 17 | . . . . . . . . . . . . . . . . . . . . . . . . . . 6 11 Robot Hit Streak 19 | 8 12 15 11 2 5 7 19 16 8 8 5 9 8 12 17 8 10 14 18 12 . 12 15 10 15 13 6 Robot Miss Streak 13 | 2 4 2 6 2 3 2 5 3 6 2 2 9 2 5 2 3 5 5 1 1 . 13 5 2 5 7 9 Penetration Max 1 | . . . . . . . . 1 . 1 1 . . . 1 1 1 . . . . . . . 1 1 . Secondary Targets 38 | . 5 . 6 . . 1 12 . . . . . . 1 2 . 6 1 3 1 . . . . . . . Max Gunslinging Chain 2 | . 1 . 1 . . 1 1 . . . . . . 1 1 . 1 1 2 1 . . . . . . . Capacitor 78 | . . . . . . . . . . . . . . . . . . . . . . . 50 12 . 16 . Autonomous 29 | . . . . . . . . . . . . . . . . . 13 16 . . . . . . . . . Shots Hit Robots 1805 | 19 110 37 229 3 15 32 310 102 57 49 6 17 54 74 51 50 148 113 22 31 . 35 80 24 104 18 15 Core Hits 898 | 7 47 16 103 2 13 16 132 50 26 19 12 12 33 36 30 22 76 69 18 14 . 17 62 5 51 4 6 Critical Kills 26 | . . . 3 . . . 1 . . 1 . . . . 1 3 8 1 . . . . . 2 6 . . Critical Parts Destroyed 40 | . . . 1 . . . 3 . . 1 . . . . 4 3 17 1 . . . . 1 2 6 1 . Critical Strikes 101 | . 1 . 7 . . . 4 2 1 3 . 1 1 5 7 7 25 5 . . . . 1 5 18 5 3 Burn 17 | . 1 . 3 . . . . . . . . . 1 5 . . . 2 . . . . . . 4 . 1 Destroy 62 | . . . 4 . . . 4 . . 2 . . . . 7 7 18 . . . . . 1 5 13 1 . Blast 2 | . . . . . . . . . 1 1 . . . . . . . . . . . . . . . . . Corrupt 4 | . . . . . . . . 2 . . . 1 . . . . . 1 . . . . . . . . . Smash 9 | . . . . . . . . . . . . . . . . . 7 2 . . . . . . . . . Sever 1 | . . . . . . . . . . . . . . . . . . . . . . . . . 1 . . Sunder 6 | . . . . . . . . . . . . . . . . . . . . . . . . . . 4 2 Melee Attacks 92 | . . . 4 . 5 4 . 11 . 3 . . . . . . 34 13 . . . . . . 18 . . Impact 61 | . . . . . . . . 11 . 3 . . . . . . 34 13 . . . . . . . . . Slashing 27 | . . . 4 . 1 4 . . . . . . . . . . . . . . . . . . 18 . . Piercing . | . . . . . . . . . . . . . . . . . . . . . . . . . . . . Sneak Attacks 11 | . . . 1 . 5 2 . 2 . . . . . . . . . . . . . . . . 1 . . Combat Hostiles . | . . . . . . . . . . . . . . . . . . . . . . . . . . . . Follow-up Attacks . | . . . . . . . . . . . . . . . . . . . . . . . . . . . . Damage Inflicted 44871 | 149 1552 619 3765 42 441 589 4924 2438 1408 1146 326 587 1541 1850 1440 1381 5079 4418 701 717 . 689 3606 707 3135 952 669 Guns 27897 | 149 1252 275 3222 42 122 399 4631 1480 566 626 45 63 643 1270 1440 1381 3436 1484 513 717 . 689 866 177 2012 66 331 Cannons 11233 | . . 344 460 . . . 293 702 842 520 63 461 826 522 . . 65 2024 58 . . . 1533 490 806 886 338 Explosions 3322 | . 295 . . . 260 . . . . . 218 63 53 58 . . 210 788 130 . . . 1207 40 . . . Melee 2340 | . . . 69 . 59 190 . 256 . . . . . . . . 1368 81 . . . . . . 317 . . Ramming 79 | . 5 . 14 . . . . . . . . . 19 . . . . 41 . . . . . . . . . Kinetic 24542 | 149 588 344 2651 42 122 399 4849 1432 1183 1049 73 180 404 754 1199 1004 2523 907 513 717 . 689 816 212 1560 66 117 Thermal 14023 | . 690 275 1031 . . . 75 . . . 253 284 968 760 241 377 1016 2922 188 . . . 2790 455 1258 335 105 Explosive 260 | . . . . . 260 . . . . . . . . . . . . . . . . . . . . . . Electromagnetic 2629 | . 269 . . . . . . 750 225 97 . 123 150 336 . . 172 467 . . . . . 40 . . . Impact 1705 | . . . . . . . . 256 . . . . . . . . 1368 81 . . . . . . . . . Slashing 635 | . . . 69 . 59 190 . . . . . . . . . . . . . . . . . . 317 . . Piercing . | . . . . . . . . . . . . . . . . . . . . . . . . . . . . Entropic 998 | . . . . . . . . . . . . . . . . . . . . . . . . . . 551 447 Highest Corruption 24 | . 2 2 1 1 1 1 . 3 3 3 3 3 2 2 2 2 24 1 3 3 3 3 3 3 3 3 2 Average Corruption 2 | . 2 2 1 1 1 1 . 2 3 3 3 3 1 2 2 1 15 1 2 3 3 3 2 3 3 1 1 Corruption Purged 2 | . . . . . . . . . . . . . . . . 2 . . . . . . . . . . . Corruption Blocked . | . . . . . . . . . . . . . . . . . . . . . . . . . . . . Effects 364 | . 7 5 14 . 1 17 . 19 34 31 5 30 4 16 4 2 10 4 27 19 10 25 6 21 44 4 5 Message Errors 79 | . 2 . 1 . . 4 . 2 4 11 1 12 2 6 . 1 1 . 3 2 2 6 2 3 11 2 1 Matter Fused 93 | . 1 2 2 . . 6 . 5 6 6 1 6 . 4 3 . 6 1 10 6 3 5 1 8 9 1 1 Heat Flow Errors 40 | . 1 . 4 . 1 1 . 4 7 . . 2 1 2 . 1 . . 2 3 1 3 . 1 5 . 1 Energy Discharges 40 | . 3 1 1 . . . . . 8 4 1 2 . . . . . . 4 3 1 3 1 3 5 . . Parts Rejected 3 | . . . . . . . . 1 . 1 . . . . . . . 1 . . . . . . . . . Parts Fused 4 | . . . . . . . . 1 1 . . . . . . . . . . . . . . . 2 . . Data Loss (minor) 48 | . . 1 3 . . 2 . 1 3 4 1 4 1 . 1 . 2 . 2 5 1 3 1 5 6 1 1 Data Loss (major) 17 | . . . 1 . . 3 . 1 . . . 2 . 2 . . 1 . 4 . 1 . . 1 1 . . Misfires 24 | . . . 2 . . 1 . 3 2 3 1 1 . 1 . . . 1 2 . . 3 . . 3 . 1 Alerts 7 | . . . . . . . . . 2 . . 1 . 1 . . . . . . 1 . . . 2 . . Weapon Failures 9 | . . 1 . . . . . 1 1 2 . . . . . . . 1 . . . 2 1 . . . . Overload Shots 9 | . . . . . . . . . . . . . . . 3 . . 3 . 1 . . 2 . . . . Overflow Damage 864 | . . . 43 . 18 36 . 11 20 . . 1 5 . . . 327 137 . . . . 81 15 57 71 42 Projectiles 244 | . . . . . . . . 11 20 . . 1 5 . . . . 42 . . . . 33 15 4 71 42 Explosions 91 | . . . . . 18 . . . . . . . . . . . . 25 . . . . 48 . . . . Melee 529 | . . . 43 . . 36 . . . . . . . . . . 327 70 . . . . . . 53 . . Knockbacks 28 | . . 7 3 . . . 2 1 7 4 . 1 . . . . 1 . . . . . . . 2 . . Impact 1 | . . . . . . . . . . . . . . . . . 1 . . . . . . . . . . Kinetic 25 | . . 6 3 . . . 2 1 7 3 . 1 . . . . . . . . . . . . 2 . . Secondary 2 | . . 1 . . . . . . . 1 . . . . . . . . . . . . . . . . . Self-Inflicted Damage 510 | . . . . . . . . . . . . . 29 . . . 193 153 . . . . 84 24 27 . . Shots 22 | . . . . . . . . . . . . . 1 . . . 3 13 . . . . 1 1 3 . . Rammed 11 | . 1 . 7 . . . . . . . . . 1 . . . . 2 . . . . . . . . . Targets Rammed 13 | . 1 . 7 . . . . . . . . . 3 . . . . 2 . . . . . . . . . Kicked . | . . . . . . . . . . . . . . . . . . . . . . . . . . . . Crushed 2 | . . . . . . . . . . . . . 2 . . . . . . . . . . . . . . Highest Temperature 760 | . 258 294 316 15 264 242 243 403 524 258 506 450 161 64 359 263 358 760 206 238 104 255 534 395 227 210 286 Average Temperature 104 | . 78 124 92 10 82 40 58 114 153 114 280 140 66 36 157 106 105 176 55 57 67 96 133 166 82 76 168 Received Heat Transfer 5662 | . 552 228 666 . 40 . 678 231 275 91 . 18 186 303 27 . 402 690 9 36 . 18 195 81 512 288 136 Effects 59 | . 1 1 4 . . . 1 3 8 . 6 1 . . . . 3 19 . . . 1 6 5 . . . Shutdowns 9 | . . . . . . . . . 1 . 1 1 . . . . . 4 . . . . 2 . . . . Energy Bleed 11 | . 1 1 . . . . 1 . . . 1 . . . . . 1 3 . . . 1 1 1 . . . Interference 29 | . . . 4 . . . . 3 6 . 3 . . . . . 2 6 . . . . 1 4 . . . Matter Decay 1 | . . . . . . . . . 1 . . . . . . . . . . . . . . . . . . Short Circuit 6 | . . . . . . . . . . . . . . . . . . 4 . . . . 2 . . . . Damage (minor) 1 | . . . . . . . . . . . . . . . . . . 1 . . . . . . . . . Damage (core) 2 | . . . . . . . . . . . 1 . . . . . . 1 . . . . . . . . . Siege Activations 13 | . . . . . . . . . . . . . . . . . 1 1 3 3 . 2 3 . . . . Total Turns 137 | . . . . . . . . . . . . . . . . . 14 31 28 39 . 13 12 . . . . Longest Duration 31 | . . . . . . . . . . . . . . . . . 14 31 24 17 . 9 7 . . . . Robots Corrupted 2 | . . . . . . . . . . . . . . . . . . 2 . . . . . . . . . Combat Hostiles 1 | . . . . . . . . . . . . . . . . . . 1 . . . . . . . . . Parts Fried 10 | . . . . . . . . 2 1 . . . . 2 . . . 4 1 . . . . . . . . Impact Corruptions 10 | . . . . . . . . . . . . . . . . . 8 2 . . . . . . . . . Robots Melted 21 | . . . . . . . . . . . 4 . . 2 . . . 5 1 . . . 8 . 1 . . Combat Hostiles 18 | . . . . . . . . . . . 4 . . 1 . . . 4 1 . . . 7 . 1 . . Parts Melted 108 | . 2 . 3 . . . . 2 . . 14 . . 4 . . . 26 6 . . . 44 . 6 1 . Heat Transferred 26408 | . 1349 645 2590 . . . 111 . . . 2080 50 685 1861 373 481 1455 4666 800 . . . 6574 74 1875 389 350 Parts Sabotaged . | . . . . . . . . . . . . . . . . . . . . . . . . . . . . Parts Stolen 4 | . . . . . . . . . . . . . . . . . . . . . . . . . 4 . . Parts Stripped . | . . . . . . . . . . . . . . . . . . . . . . . . . . . . Power Chain Reactions 9 | . 3 . . . . . . . . . . 1 . . . . . 1 . . . . 3 1 . . . Alert | -11 -10 -10 -9 -9 -9 -8 -8 -7 -7 -7 -7 -6 -6 -6 -6 -6 -6 -5 -5 -5 -5 -4 -4 -4 -4 -4 -3 ------- Run | Yrd Mat Min Mat Min Exi Min Mat Fac Low Low Dat Pro Fac Ext Cet Arc Hub Fac Upp Upp Zhi Pro Fac Upp Upp War Pro Peak Influence 963 | 20 250 172 806 302 . 125 914 544 . . . . 537 456 308 321 835 963 . . . . 718 . . . . Initial 415 | . 13 97 21 292 . . 3 415 . . . . 300 262 196 123 42 269 . . . . 300 . . . . Average 367 | 6 119 116 462 298 . 19 472 361 . . . . 338 308 282 279 411 680 . . . . 389 . . . . Maximum Alert Level 3 | . 1 . 3 1 . . 3 2 . . . . 2 2 1 1 3 3 . . . . 3 . . . . Low Security (%) 24 | 100 85 100 12 . . 100 16 . . . . . . 4 9 19 7 . . . . . . . . . . Level 1 36 | . 14 . 25 100 . . 17 75 . . . . 79 90 90 80 27 20 . . . . 58 . . . . Level 2 25 | . . . 40 . . . 40 24 . . . . 20 4 . . 59 18 . . . . 36 . . . . Level 3 13 | . . . 20 . . . 25 . . . . . . . . . 6 60 . . . . 4 . . . . Level 4 . | . . . . . . . . . . . . . . . . . . . . . . . . . . . . Level 5 . | . . . . . . . . . . . . . . . . . . . . . . . . . . . . High Security . | . . . . . . . . . . . . . . . . . . . . . . . . . . . . Max Security . | . . . . . . . . . . . . . . . . . . . . . . . . . . . . Squads Dispatched 55 | . 4 . 8 . . . 5 8 . . . . 3 1 . . 11 7 . . . . 6 . 1 . 1 Investigation 21 | . 4 . 6 . . . 2 4 . . . . 1 . . . 3 1 . . . . . . . . . Extermination 10 | . . . . . . . . 4 . . . . 1 . . . 2 2 . . . . 1 . . . . Reinforcement 16 | . . . 2 . . . 1 . . . . . 1 1 . . 4 3 . . . . 4 . . . . Assault 7 | . . . . . . . 2 . . . . . . . . . 2 1 . . . . . . 1 . 1 Garrison 1 | . . . . . . . . . . . . . . . . . . . . . . . 1 . . . . Intercept . | . . . . . . . . . . . . . . . . . . . . . . . . . . . . Searches Triggered 1 | . . . . . . . . . . . . . . . . . . . . . . . 1 . . . . Construction Impeded 3 | . . . . . . . . . . . . . . 1 . . . . . . . . 2 . . . . Haulers Reinforced 3 | . . . . . . . . . . . . . 1 . . . . 2 . . . . . . . . . Active Scanning Responses . | . . . . . . . . . . . . . . . . . . . . . . . . . . . . Cargo Convoy Interrupts . | . . . . . . . . . . . . . . . . . . . . . . . . . . . . Stealth | -11 -10 -10 -9 -9 -9 -8 -8 -7 -7 -7 -7 -6 -6 -6 -6 -6 -6 -5 -5 -5 -5 -4 -4 -4 -4 -4 -3 --------- Run | Yrd Mat Min Mat Min Exi Min Mat Fac Low Low Dat Pro Fac Ext Cet Arc Hub Fac Upp Upp Zhi Pro Fac Upp Upp War Pro Distress Signals 25 | . 3 . 3 . . . 3 . . . . . . 2 2 . 1 7 . . . . 3 . . 1 . Communications Jammed 1 | . . . . . . . . . . . . . 1 . . . . . . . . . . . . . . Distress Signals 1 | . . . . . . . . . . . . . 1 . . . . . . . . . . . . . . Times Spotted 569 | . 29 5 54 . 7 5 62 26 15 15 6 8 13 22 10 9 51 58 11 8 . 7 35 3 42 51 17 Peak Tracking Total 13 | . 5 2 5 . 10 4 6 4 4 4 4 3 3 6 5 1 5 7 5 5 . 2 8 2 8 13 9 Tactical Retreats 30 | . . . 2 . 2 . 4 . . 2 . 1 . . . . 7 1 2 1 . . 2 . 4 . 2 Traps | -11 -10 -10 -9 -9 -9 -8 -8 -7 -7 -7 -7 -6 -6 -6 -6 -6 -6 -5 -5 -5 -5 -4 -4 -4 -4 -4 -3 ------- Run | Yrd Mat Min Mat Min Exi Min Mat Fac Low Low Dat Pro Fac Ext Cet Arc Hub Fac Upp Upp Zhi Pro Fac Upp Upp War Pro Traps Triggered 7 | . 2 . 2 . . . . 1 . . . . 1 1 . . . . . . . . . . . . . Indirectly . | . . . . . . . . . . . . . . . . . . . . . . . . . . . . Trap Hack Attempts . | . . . . . . . . . . . . . . . . . . . . . . . . . . . . Triggered . | . . . . . . . . . . . . . . . . . . . . . . . . . . . . Disarmed . | . . . . . . . . . . . . . . . . . . . . . . . . . . . . Reprogrammed . | . . . . . . . . . . . . . . . . . . . . . . . . . . . . Reused . | . . . . . . . . . . . . . . . . . . . . . . . . . . . . Traps Extracted . | . . . . . . . . . . . . . . . . . . . . . . . . . . . . Installed . | . . . . . . . . . . . . . . . . . . . . . . . . . . . . Triggered 18 | . . . . . . . . . . . . . . . . . . . 2 . . 1 . . . 15 . Most Traps Carried 2 | . . . . . . . . . . . . . . . . . . . . . . . . . 2 . . Machines | -11 -10 -10 -9 -9 -9 -8 -8 -7 -7 -7 -7 -6 -6 -6 -6 -6 -6 -5 -5 -5 -5 -4 -4 -4 -4 -4 -3 ---------- Run | Yrd Mat Min Mat Min Exi Min Mat Fac Low Low Dat Pro Fac Ext Cet Arc Hub Fac Upp Upp Zhi Pro Fac Upp Upp War Pro Machines Disabled 51 | . . . 4 . 1 . 1 . . . 1 . 1 5 2 4 21 9 . . . . 2 . . . . Max in Single Turn 6 | . . . 1 . 1 . 1 . . . 1 . 1 2 . 1 6 5 . . . . 1 . . . . Garrison Access 4 | . . . . . . . . 1 . . . . . . . . 1 1 . . . . 1 . . . . Network Hub 2 | . . . . . . . . . . . . . . . . . 2 . . . . . . . . . . Energy Cycler 2 | . . . . . . . . . . . . . . 2 . . . . . . . . . . . . . Machines Repaired . | . . . . . . . . . . . . . . . . . . . . . . . . . . . . Machines Dismantled . | . . . . . . . . . . . . . . . . . . . . . . . . . . . . Machines Sabotaged . | . . . . . . . . . . . . . . . . . . . . . . . . . . . . Overloaded Fab Kills . | . . . . . . . . . . . . . . . . . . . . . . . . . . . . Hacking | -11 -10 -10 -9 -9 -9 -8 -8 -7 -7 -7 -7 -6 -6 -6 -6 -6 -6 -5 -5 -5 -5 -4 -4 -4 -4 -4 -3 --------- Run | Yrd Mat Min Mat Min Exi Min Mat Fac Low Low Dat Pro Fac Ext Cet Arc Hub Fac Upp Upp Zhi Pro Fac Upp Upp War Pro Machines Accessed 102 | . 11 . 14 . 1 . 11 11 1 2 4 . 2 5 . . 8 12 1 . 9 . 3 . . 7 . Terminals 52 | . 8 . 9 . . . 8 5 . . . . 1 5 . . 7 7 . . . . 2 . . . . Fabricators 6 | . . . . . . . . 3 . . . . . . . . . 3 . . . . . . . . . Repair Stations 4 | . 1 . 1 . . . 1 . . . . . . . . . . 1 . . . . . . . . . Recycling Units 7 | . 2 . 2 . . . 1 2 . . . . . . . . . . . . . . . . . . . Scanalyzers 4 | . . . 2 . . . 1 . . . . . 1 . . . . . . . . . . . . . . Garrison Access 4 | . . . . . . . . 1 . . . . . . . . 1 1 . . . . 1 . . . . Total Hacks 352 | . 34 . 46 . 1 . 35 20 1 2 30 . 13 12 . . 23 69 1 . 48 . 9 . . 8 . Successful 229 | . 19 . 28 . 1 . 17 6 1 2 30 . 9 4 . . 11 38 1 . 48 . 6 . . 8 . Failed 122 | . 15 . 17 . . . 18 14 . . . . 4 8 . . 12 31 . . . . 3 . . . . Catastrophic 22 | . 2 . . . . . 2 6 . . . . . 3 . . 4 4 . . . . 1 . . . . Database Lockouts 1 | . . . 1 . . . . . . . . . . . . . . . . . . . . . . . . Manual 126 | . 22 . 34 . 1 . 18 13 . . . . 3 2 . . 3 25 . . . . 4 . . 1 . Terminals 190 | . 31 . 38 . . . 26 10 . . . . 3 12 . . 21 43 . . . . 6 . . . . Fabricators 17 | . . . . . . . . 6 . . . . . . . . . 11 . . . . . . . . . Repair Stations 19 | . 1 . 2 . . . 3 . . . . . . . . . . 13 . . . . . . . . . Recycling Units 8 | . 2 . 2 . . . 1 3 . . . . . . . . . . . . . . . . . . . Scanalyzers 19 | . . . 4 . . . 5 . . . . . 10 . . . . . . . . . . . . . . Garrison Access 8 | . . . . . . . . 1 . . . . . . . . 2 2 . . . . 3 . . . . Terminal Hacks 148 | . 8 . 8 . 1 . 5 . 1 2 30 . . 4 . . 10 18 1 . 48 . 4 . . 8 . Record 55 | . . . . . . . . . . 1 11 . . . . . . . . . 36 . . . . 7 . Part Schematic 17 | . . . . . . . . . . . 13 . . . . . . . . . 4 . . . . . . Robot Schematic 5 | . 1 . 1 . . . . . . . 3 . . . . . . . . . . . . . . . . Robot Analysis 6 | . . . . . . . . . . . . . . . . . . 2 . . 4 . . . . . . Prototype ID Bank 19 | . 2 . 3 . . . 2 . . . 3 . . 2 . . 2 1 . . 4 . . . . . . Open Door 5 | . . . . . . . . . 1 1 . . . 1 . . . . 1 . . . . . . 1 . Open DSF 1 | . . . . . . . . . . . . . . . . . . 1 . . . . . . . . . Branch Access Points 3 | . . . 1 . . . . . . . . . . . . . . 1 . . . . 1 . . . . Terminal Index 1 | . . . . . . . . . . . . . . . . . . . . . . . 1 . . . . Alert Level 5 | . . . . . . . 1 . . . . . . 1 . . 1 2 . . . . . . . . . Unreport Threat 6 | . . . 1 . . . . . . . . . . . . . 3 2 . . . . . . . . . Locate Traps 7 | . 1 . . . . . 1 . . . . . . . . . 3 2 . . . . . . . . . Dispatch Records 2 | . 1 . . . . . . . . . . . . . . . . 1 . . . . . . . . . Maintenance Status 1 | . . . . . . . . . . . . . . . . . . 1 . . . . . . . . . Security Status 2 | . . . . . . . . . . . . . . . . . . 2 . . . . . . . . . Transport Status 1 | . . . . . . . . . . . . . . . . . . 1 . . . . . . . . . Hauler Manifests 4 | . 1 . 1 . . . 1 . . . . . . . . . . . . . . . 1 . . . . Registered Components 1 | . . . . . . . . . . . . . . . . . . . . . . . 1 . . . . Zone Layout 6 | . 2 . 1 . . . . . . . . . . . . . 1 2 . . . . . . . . . Derelict Proto ID Bank 1 | . . . . . 1 . . . . . . . . . . . . . . . . . . . . . . Fabricator Hacks 6 | . . . . . . . . 1 . . . . . . . . . 5 . . . . . . . . . Network Status 2 | . . . . . . . . 1 . . . . . . . . . 1 . . . . . . . . . Load Schematic 1 | . . . . . . . . . . . . . . . . . . 1 . . . . . . . . . Build 3 | . . . . . . . . . . . . . . . . . . 3 . . . . . . . . . Repair Station Hacks 5 | . . . . . . . . . . . . . . . . . . 5 . . . . . . . . . Scan Component 3 | . . . . . . . . . . . . . . . . . . 3 . . . . . . . . . Repair 2 | . . . . . . . . . . . . . . . . . . 2 . . . . . . . . . Recycling Unit Hacks . | . . . . . . . . . . . . . . . . . . . . . . . . . . . . Scanalyzer 12 | . . . . . . . 4 . . . . . 8 . . . . . . . . . . . . . . Insert Component 5 | . . . . . . . 2 . . . . . 3 . . . . . . . . . . . . . . Analyze 7 | . . . . . . . 2 . . . . . 5 . . . . . . . . . . . . . . Garrison Access Hacks 4 | . . . . . . . . 1 . . . . . . . . 1 1 . . . . 1 . . . . Seal Access 4 | . . . . . . . . 1 . . . . . . . . 1 1 . . . . 1 . . . . Unauthorized Hacks 54 | . 11 . 20 . . . 8 4 . . . . 1 . . . . 9 . . . . 1 . . . . Terminals 39 | . 8 . 14 . . . 7 1 . . . . 1 . . . . 7 . . . . 1 . . . . Track 1 | . . . . . . . . . . . . . . . . . . 1 . . . . . . . . . Botnet 13 | . 3 . 3 . . . 2 1 . . . . . . . . . 3 . . . . 1 . . . . Disrupt 1 | . . . . . . . . . . . . . . . . . . 1 . . . . . . . . . Operators 4 | . . . 2 . . . . . . . . . . . . . . 2 . . . . . . . . . Skim 20 | . 5 . 9 . . . 5 . . . . . 1 . . . . . . . . . . . . . . Fabricators 3 | . . . . . . . . 1 . . . . . . . . . 2 . . . . . . . . . Liberate 1 | . . . . . . . . . . . . . . . . . . 1 . . . . . . . . . Fabnet 2 | . . . . . . . . 1 . . . . . . . . . 1 . . . . . . . . . Repair Stations 2 | . 1 . 1 . . . . . . . . . . . . . . . . . . . . . . . . Mechanics 1 | . . . 1 . . . . . . . . . . . . . . . . . . . . . . . . Patch 1 | . 1 . . . . . . . . . . . . . . . . . . . . . . . . . . Recycling Units 7 | . 2 . 2 . . . 1 2 . . . . . . . . . . . . . . . . . . . Tunnel 7 | . 2 . 2 . . . 1 2 . . . . . . . . . . . . . . . . . . . Scanalyzers 3 | . . . 3 . . . . . . . . . . . . . . . . . . . . . . . . Researchers 1 | . . . 1 . . . . . . . . . . . . . . . . . . . . . . . . Extract 2 | . . . 2 . . . . . . . . . . . . . . . . . . . . . . . . Garrison Access . | . . . . . . . . . . . . . . . . . . . . . . . . . . . . Data Cores Recovered 2 | . . . . . . . . . . . . . . . . . . 1 . . . . 1 . . . . Used 1 | . . . . . . . . . . . . . . . . . . . . . . . 1 . . . . Hacking Detections 60 | . 8 . 11 . . . 10 8 . . . . 2 4 . . 8 8 . . . . 1 . . . . Full Trace Events 11 | . . . 2 . . . 2 2 . . . . 1 . . . 3 1 . . . . . . . . . Feedback Events . | . . . . . . . . . . . . . . . . . . . . . . . . . . . . Feedback Blocked . | . . . . . . . . . . . . . . . . . . . . . . . . . . . . Robot Schematics Acquired 5 | . 1 . 1 . . . . . . . 3 . . . . . . . . . . . . . . . . Robots Built 4 | . . . . . . . . . . . . . . . . . . 4 . . . . . . . . . Authchips . | . . . . . . . . . . . . . . . . . . . . . . . . . . . . Time 321 | . . . . . . . . . . . . . . . . . . 321 . . . . . . . . . Total Robot Build Rating 22 | . . . . . . . . . . . . . . . . . . 22 . . . . . . . . . Part Schematics Acquired 27 | . . . 6 . . . 2 . . . 13 . 2 . . . . . . . 4 . . . . . . Parts Built 1 | . . . . . . . . . . . . . . . . . . 1 . . . . . . . . . Authchips . | . . . . . . . . . . . . . . . . . . . . . . . . . . . . Time 169 | . . . . . . . . . . . . . . . . . . 169 . . . . . . . . . Total Part Build Rating 6 | . . . . . . . . . . . . . . . . . . 6 . . . . . . . . . Parts Repaired 2 | . . . . . . . . . . . . . . . . . . 2 . . . . . . . . . Time 110 | . . . . . . . . . . . . . . . . . . 110 . . . . . . . . . Parts Recycled . | . . . . . . . . . . . . . . . . . . . . . . . . . . . . Recycled Matter . | . . . . . . . . . . . . . . . . . . . . . . . . . . . . Retrieved Matter . | . . . . . . . . . . . . . . . . . . . . . . . . . . . . Retrieved Components . | . . . . . . . . . . . . . . . . . . . . . . . . . . . . Parts Scanalyzed 5 | . . . . . . . 2 . . . . . 3 . . . . . . . . . . . . . . Part Schematics Acquired 4 | . . . . . . . 2 . . . . . 2 . . . . . . . . . . . . . . Parts Damaged . | . . . . . . . . . . . . . . . . . . . . . . . . . . . . Bothacking | -11 -10 -10 -9 -9 -9 -8 -8 -7 -7 -7 -7 -6 -6 -6 -6 -6 -6 -5 -5 -5 -5 -4 -4 -4 -4 -4 -3 ------------ Run | Yrd Mat Min Mat Min Exi Min Mat Fac Low Low Dat Pro Fac Ext Cet Arc Hub Fac Upp Upp Zhi Pro Fac Upp Upp War Pro Used RIF Installer . | . . . . . . . . . . . . . . . . . . . . . . . . . . . . Robots Hacked 11 | . . . . . 4 . . . . . . . . . . . . . . . . . 4 . . 3 . Non-combat 3 | . . . . . 3 . . . . . . . . . . . . . . . . . . . . . . Combat 8 | . . . . . 1 . . . . . . . . . . . . . . . . . 4 . . 3 . Robot Hacks Applied 5 | . . . . . 4 . . . . . . . . . . . . . . . . . . . . 1 . parse_system 5 | . . . . . 4 . . . . . . . . . . . . . . . . . . . . 1 . Relay Couplers Released . | . . . . . . . . . . . . . . . . . . . . . . . . . . . . Fabnet Peak Effective % 3 | . . . . . . . . . . . . 3 3 3 3 3 3 1 1 1 1 3 3 3 3 3 1 Autooverrided 6 | . . . . . . . . . . . . . . . . . . . . . . . 4 . . 2 . Robots Rewired 15 | . . . . . . . . . . . . . . 11 . . . 1 . . . . . . 2 . 1 Allies Hacked 2 | . . . . . . . . . . . . . . . . . . 2 . . . . . . . . . Hacks Repelled . | . . . . . . . . . . . . . . . . . . . . . . . . . . . . Allies | -11 -10 -10 -9 -9 -9 -8 -8 -7 -7 -7 -7 -6 -6 -6 -6 -6 -6 -5 -5 -5 -5 -4 -4 -4 -4 -4 -3 -------- Run | Yrd Mat Min Mat Min Exi Min Mat Fac Low Low Dat Pro Fac Ext Cet Arc Hub Fac Upp Upp Zhi Pro Fac Upp Upp War Pro Total Allies 33 | . . . . . . . . 3 . . . . . 11 . . . 10 . . . . 4 . 2 2 1 Largest Group 7 | . . . . . . . . 3 . . . . . 7 4 . . 4 . . . . 1 . 2 . 1 Highest-Rated Group 202 | . . . . . . . . 93 . . . . . 202 140 . . 190 . . . . 49 . 95 . 58 Highest-Rated Ally 58 | . . . . . . . . 31 . . . . . 39 39 . . 54 . . . . 49 . 48 . 58 Total Orders 23 | . . . . . . . . . . . . 4 2 2 . . . 1 . . . 2 4 5 . 3 . STAY 1 | . . . . . . . . . . . . . . 1 . . . . . . . . . . . . . FOLLOW 2 | . . . . . . . . . . . . . . 1 . . . 1 . . . . . . . . . EXPLORE 9 | . . . . . . . . . . . . 2 1 . . . . . . . . 1 2 2 . 1 . RETURN 11 | . . . . . . . . . . . . 2 1 . . . . . . . . 1 2 3 . 2 . Ally Attacks 217 | . . . . . . . . 34 . . . . . 28 31 . 26 69 . . . . 6 . 18 1 4 Total Damage 5576 | . . . . . . . . 547 . . . . . 498 477 . 1139 2212 . . . . 146 . 453 38 66 Kills 37 | . . . . . . . . 5 . . . . . 6 4 . 4 15 . . . . . . 2 . 1 Allies Corrupted . | . . . . . . . . . . . . . . . . . . . . . . . . . . . . Allies Melted 2 | . . . . . . . . . . . . . . . . . 1 1 . . . . . . . . . Turrets Deployed 1 | . . . . . . . . . . . . . . . . . 1 . . . . . . . . . . Intel | -11 -10 -10 -9 -9 -9 -8 -8 -7 -7 -7 -7 -6 -6 -6 -6 -6 -6 -5 -5 -5 -5 -4 -4 -4 -4 -4 -3 ------- Run | Yrd Mat Min Mat Min Exi Min Mat Fac Low Low Dat Pro Fac Ext Cet Arc Hub Fac Upp Upp Zhi Pro Fac Upp Upp War Pro Robot Analysis Total 6 | . . . . . . . . . . . . . . . . . . 2 . . 4 . . . . . . Derelict Logs Recovered 11 | . . . . . . . . . 1 3 . 1 . . . . . . 1 1 . 2 . . 2 . . Drone Launches 26 | . . . . . . . . . . . . 4 2 . . . . . . . . 2 4 4 3 7 . Drone Recoveries 21 | . . . . . . . . . . . . 4 2 . . . . . . . . 2 3 3 2 5 . Decoded 0b10 Intel 51 | . . . . . . . . . . . . . . . . . 21 30 . . . . . . . . . Traps 21 | . . . . . . . . . . . . . . . . . 3 18 . . . . . . . . . Emergency Access 25 | . . . . . . . . . . . . . . . . . 16 9 . . . . . . . . . Garrisons 3 | . . . . . . . . . . . . . . . . . 2 1 . . . . . . . . . Exits 2 | . . . . . . . . . . . . . . . . . . 2 . . . . . . . . . Exploration | -11 -10 -10 -9 -9 -9 -8 -8 -7 -7 -7 -7 -6 -6 -6 -6 -6 -6 -5 -5 -5 -5 -4 -4 -4 -4 -4 -3 ------------- Run | Yrd Mat Min Mat Min Exi Min Mat Fac Low Low Dat Pro Fac Ext Cet Arc Hub Fac Upp Upp Zhi Pro Fac Upp Upp War Pro Turns Passed 35768 | 252 1586 516 3487 155 493 1438 2795 2477 2231 1640 267 1650 680 1129 355 412 1798 1848 1524 965 523 1607 775 1100 2118 1429 518 Spaces Moved 17398 | 123 765 261 1456 93 240 568 1303 1286 1158 764 171 977 353 602 158 145 855 902 904 556 304 855 299 547 956 559 238 Core 3 | 3 . . . . . . . . . . . . . . . . . . . . . . . . . . . Treads 12965 | 120 765 261 1456 93 199 564 1303 1286 1158 422 . . 143 602 158 145 672 560 904 556 304 855 299 59 4 77 . Legs 1815 | . . . . . 41 4 . . . . 7 . . . . . 147 342 . . . . . 488 474 74 238 Wheels 2615 | . . . . . . . . . . 342 164 977 210 . . . 36 . . . . . . . 478 408 . Hover . | . . . . . . . . . . . . . . . . . . . . . . . . . . . . Flight . | . . . . . . . . . . . . . . . . . . . . . . . . . . . . Fastest Speed 45 | 50 160 160 160 160 45 90 160 161 161 130 115 130 130 145 160 160 70 70 160 160 160 160 160 180 70 120 190 Average Speed 168 | 157 160 160 180 160 174 238 162 164 179 197 126 154 137 150 160 160 150 140 160 160 160 163 188 187 166 196 190 Slowest Speed 480 | 160 160 160 240 160 320 240 240 243 241 410 260 160 225 235 160 160 240 180 160 160 160 240 240 240 480 260 190 Overloaded Moves 141 | . . . . . 24 . . . . . . . . . . . 99 3 . . . . . . 15 . . Propulsion Burnouts . | . . . . . . . . . . . . . . . . . . . . . . . . . . . . Robots Hopped . | . . . . . . . . . . . . . . . . . . . . . . . . . . . . Cave-ins Triggered . | . . . . . . . . . . . . . . . . . . . . . . . . . . . . Teleports 1 | . . . . . . . . . . . . . . . . . . . . . . . . . . . 1 Exploration Rate (%) 66 | 7 97 49 98 19 64 100 90 34 99 84 78 97 11 73 56 83 68 30 93 68 62 95 7 72 92 87 55 Regions Visited 27 Branch Regions 20 Pre-discovered Areas 21 | . 4 . 4 1 . . 2 2 1 2 1 . . . . . . . . . 3 . . . 1 . . Known Exits Taken 12 | . 1 1 1 . . . 1 1 1 1 . 1 1 . . . . 1 . . . 1 1 . . . . Unknown Exits Taken 15 | 1 . . . 1 1 1 . . . . 1 . . 1 1 1 1 . 1 1 1 . . 1 1 1 . Scrap Searched 38 | . . 1 . . . 1 . . 8 8 . 5 . . . . . . 4 2 . 2 . 3 3 . 1 Spaces Dug 65 | . . . 1 . . . 3 9 . 3 . . 2 . . . 17 12 . 1 . . 2 . 3 4 8 Terrain Destroyed 698 | . 12 . 1 . 4 . 12 12 11 14 . 14 6 12 6 20 410 57 . 1 . . 41 5 25 12 23 Melee 34 | . . . 1 . . . . 9 . 2 . . . . . . 9 10 . . . . . . 3 . . Projectile 245 | . . . . . . . 12 3 11 12 . 12 6 4 6 20 58 25 . 1 . . 13 5 22 12 23 AOE 419 | . 12 . . . 4 . . . . . . 2 . 8 . . 343 22 . . . . 28 . . . . Terrain Rammed . | . . . . . . . . . . . . . . . . . . . . . . . . . . . . Walls Destroyed . | . . . . . . . . . . . . . . . . . . . . . . . . . . . . Machines Disabled . | . . . . . . . . . . . . . . . . . . . . . . . . . . . . Actions | -11 -10 -10 -9 -9 -9 -8 -8 -7 -7 -7 -7 -6 -6 -6 -6 -6 -6 -5 -5 -5 -5 -4 -4 -4 -4 -4 -3 --------- Run | Yrd Mat Min Mat Min Exi Min Mat Fac Low Low Dat Pro Fac Ext Cet Arc Hub Fac Upp Upp Zhi Pro Fac Upp Upp War Pro Total 21710 | 155 977 306 2027 94 300 609 1634 1530 1245 840 216 1085 482 738 210 266 1124 1327 972 614 343 1043 472 605 1345 874 277 Wait 2058 | 8 89 7 314 . . 10 99 115 43 34 18 80 55 23 1 79 95 214 45 44 . 159 49 15 237 210 15 Move 17371 | 122 764 260 1455 92 239 567 1302 1285 1157 763 170 976 352 601 157 144 854 901 903 555 303 854 298 546 955 558 238 Hop . | . . . . . . . . . . . . . . . . . . . . . . . . . . . . Pick Up 198 | 2 14 4 34 . 9 3 6 9 1 2 4 9 6 3 7 3 2 29 1 . 9 3 7 2 22 7 . Fast Attach 253 | 7 5 . 18 . 5 2 26 18 5 6 7 1 14 12 8 5 7 25 5 . 8 3 8 9 18 30 1 Attach 117 | . 3 4 6 . 9 . 1 3 1 1 3 2 3 3 1 . 11 13 3 . 4 . 11 3 16 11 5 Detach 39 | 1 . . . . 4 . 1 2 . . . . . . . . 6 3 1 1 1 . 8 . 4 7 . Swap 158 | . 4 . 24 . 8 2 20 9 2 2 1 2 2 3 3 4 22 18 2 2 3 3 8 3 1 8 2 Drop 318 | . 8 2 40 . 14 5 36 25 4 3 9 4 18 10 10 7 4 37 5 . 15 4 8 9 21 20 . Fire 1041 | 15 89 29 125 2 7 16 143 52 32 26 4 11 29 41 23 24 89 64 6 12 . 17 75 18 53 23 16 Melee 92 | . . . 4 . 5 4 . 11 . 3 . . . . . . 34 13 . . . . . . 18 . . Ram . | . . . . . . . . . . . . . . . . . . . . . . . . . . . . Kick . | . . . . . . . . . . . . . . . . . . . . . . . . . . . . Crush 13 | . 1 . 7 . . . . . . . . . 3 . . . . 2 . . . . . . . . . Escape Stasis . | . . . . . . . . . . . . . . . . . . . . . . . . . . . . Rewire 52 | . . . . . . . . 1 . . . . . 42 . . . 8 1 . . . . . . . . Trap . | . . . . . . . . . . . . . . . . . . . . . . . . . . . . Miscellaneous . | . . . . . . . . . . . . . . . . . . . . . . . . . . . . Route ------- -11/Scrapyard -10/Materials (discovered 6 exits: *Mat x3 / *Min x2 / Sub) -10/Mines -9/Materials (discovered 5 exits: *Mat x3 / *Min x2) -9/Mines (discovered 2 exits: *Mat / *Exi) -9/Exiles -8/Mines (discovered 2 exits: *Mat x2) -8/Materials (discovered 3 exits: *Fac x3) -7/Factory (discovered 6 exits: *Fac x3 / Sto x2 / *Low) -7/Lower Caves (discovered 2 exits: *Low / [*Zio]) -7/Lower Caves (discovered 2 exits: *Fac / *Dat) -7/Data Miner -6/Proximity Caves -6/Factory (discovered 3 exits: *Fac x2 / *Ext) -6/Extension (discovered 3 exits: *Fac x2 / [*Cet]) -6/Cetus (discovered 2 exits: *Fac / [*Arc]) -6/Archives (discovered 3 exits: *Fac / *Hub x2) -6/Hub_04(d) -5/Factory (discovered 5 exits: *Fac x3 / *Upp x2) -5/Upper Caves -5/Upper Caves (discovered 2 exits: *Fac / *Zhi) -5/Zhirov -4/Proximity Caves -4/Factory (discovered 2 exits: *Upp x2) -4/Upper Caves -4/Upper Caves (discovered 2 exits: [*Res] / *War) -4/Warlord -3/Proximity Caves History --------- Turn | Location | Event 13 | -11/Scrapyard | Discovered new exit (range 16) 253 | -11/Scrapyard | Entered Materials 311 | -10/Materials | Build established: Mutant 460 | -10/Materials | Discovered new exit (range 10) 603 | -10/Materials | Discovered new exit (range 11) 832 | -10/Materials | Lost 3 parts (1n1u1w) 852 | -10/Materials | Discovered new exit (range 8) 1077 | -10/Materials | Identified exit to Materials 1118 | -10/Materials | Identified exit to Mines 1118 | -10/Materials | Identified exit to Subcaves 1134 | -10/Materials | Core integrity fell below 50% 1152 | -10/Materials | Build established: Scavenger-Mutant 1187 | -10/Materials | Learned location of 2 exits from Subcaves 1192 | -10/Materials | Loaded intel: 2 recycling unit locations 1263 | -10/Materials | Learned location of 1 exit from Recycling 1839 | -10/Materials | Entered Mines 2254 | -10/Mines | Discovered exit to Materials (range 13) 2272 | -10/Mines | Core integrity fell below 20% 2355 | -10/Mines | Entered Materials 2355 | -9/Materials | Evolved 2 slots: Weapon x2 2394 | -9/Materials | Discovered new exit (range 18) 2872 | -9/Materials | Lost 7 parts (3n1u3w) 3063 | -9/Materials | Discovered new exit (range 4) 3474 | -9/Materials | Build established: Gunner 3500 | -9/Materials | Identified exit to Mines 4320 | -9/Materials | Build established: Tank 4599 | -9/Materials | Discovered new exit (range 15) 4969 | -9/Materials | Build established: Gunner 5052 | -9/Materials | Central database locked down 5281 | -9/Materials | Discovered new exit (range 16) 5670 | -9/Materials | Build established: Scavenger-Gunner 5680 | -9/Materials | Learned location of 1 exit from Recycling 5773 | -9/Materials | Learned Storage emergency access door positions 5784 | -9/Materials | Learned location of Mines (-9) 5785 | -9/Materials | Learned location of 3 exits from Materials 5842 | -9/Materials | Entered Mines 5896 | -9/Mines | Met a Derelict bent on vengeance 5969 | -9/Mines | Discovered new exit (range 8) 5989 | -9/Mines | Deemed a non-threat by the Exiles lab entrance 5989 | -9/Mines | Discovered new exit (range 5) 5997 | -9/Mines | Entered Exiles 6034 | -9/Exiles | Met 8R-AWN 6068 | -9/Exiles | Met EX-HEX 6114 | -9/Exiles | Met EX-BIN 6135 | -9/Exiles | Aligned with FarCom system 6136 | -9/Exiles | Given EX-Vault access code 6173 | -9/Exiles | Opened EX-Vault 6183 | -9/Exiles | Found Potential Leg 6188 | -9/Exiles | Found Potential Leg 6192 | -9/Exiles | Found Firepult 6241 | -9/Exiles | Warned to stay clear of 0b10 Research branches 6341 | -9/Exiles | Met EX-DEC 6397 | -9/Exiles | Murdered EX-DEC 6398 | -9/Exiles | Attacked by the Exiles 6405 | -9/Exiles | Found AWS/EX-DEC 6444 | -9/Exiles | Found Deploy-a-Sentry 6446 | -9/Exiles | Destroyed 7 combat bots 6450 | -9/Exiles | Found Exp. Core Analyzer 6460 | -9/Exiles | Core integrity fell below 50% 6482 | -9/Exiles | Discovered new exit (range 10) 6490 | -9/Exiles | Stole three prototypes: Potential Leg, Firepult, Deploy-a-Sentry 6490 | -9/Exiles | Entered Mines 6630 | -8/Mines | Discovered new exit (range 16) 6785 | -8/Mines | Build established: Scavenger-Tank 7313 | -8/Mines | Discovered new exit (range 7) 7928 | -8/Mines | Entered Materials 7928 | -8/Materials | Evolved 2 slots: Propulsion x2 7929 | -8/Materials | Identified exit to Factory 9928 | -8/Materials | First assault squad dispatched 10506 | -8/Materials | Learned Storage emergency access door positions 10573 | -8/Materials | Learned location of Zion (-6) 10629 | -8/Materials | Learned location of 2 exits from Factory 10716 | -8/Materials | Learned location of 2 exits from Lower Caves 10723 | -8/Materials | Entered Factory 10723 | -7/Factory | Evolved 2 slots: Utility x2 10724 | -7/Factory | Identified exit to Factory 10724 | -7/Factory | Identified exit to Storage 10725 | -7/Factory | Identified exit to Lower Caves 11084 | -7/Factory | Build established: Scavenger-Gunner 11309 | -7/Factory | Allied Derelicts emerged from ambush trap array 11396 | -7/Factory | Build established: Gunner 11600 | -7/Factory | P-60 Hacker assimilated allied 5S-AX1(g) 12007 | -7/Factory | P-60 Hacker assimilated allied 4M-MHT(g) 13200 | -7/Factory | Entered Lower Caves 13201 | -7/Lower Caves | Identified exit to Lower Caves 13215 | -7/Lower Caves | Attracted the attention of an 0b10 checkpoint 13663 | -7/Lower Caves | A Derelict revealed a hidden shortcut to a safe place 14950 | -7/Lower Caves | Ambushed by wild Derelicts 15015 | -7/Lower Caves | Lost 3 parts (1p1n1w) 15431 | -7/Lower Caves | Entered another Lower Caves area 15432 | -7/Lower Caves | Identified exit to Data Miner 15808 | -7/Lower Caves | Attracted the attention of an 0b10 checkpoint 16258 | -7/Lower Caves | Learned Factory terminal intel 16359 | -7/Lower Caves | Discovered exit to Factory (range 11) 17071 | -7/Lower Caves | Entered Data Miner 17071 | -7/Data Miner | Discovered new exit (range 7) 17096 | -7/Data Miner | Met Data Miner 17121 | -7/Data Miner | Learned location of Section 7 (-2) 17121 | -7/Data Miner | Acquired the access code to Warlord's prototype stash 17142 | -7/Data Miner | Received God Mode back door access code from Data Miner 17219 | -7/Data Miner | Data Conduit disabled 17240 | -7/Data Miner | Core integrity fell below 50% 17338 | -7/Data Miner | Entered Proximity Caves 17340 | -6/Proximity Caves | Spotter reported a threat 17341 | -6/Proximity Caves | Spotter reported a threat 17565 | -6/Proximity Caves | Build established: Scavenger-Gunner 17990 | -6/Proximity Caves | Attracted the attention of an 0b10 checkpoint 18746 | -6/Proximity Caves | Learned Factory stockpile data 18863 | -6/Proximity Caves | Discovered exit to Factory (range 13) 18988 | -6/Proximity Caves | Entered Factory 18988 | -6/Factory | Evolved 2 slots: Utility x2 18989 | -6/Factory | Identified exit to Extension 18991 | -6/Factory | Loaded intel: 28 terminal locations 19148 | -6/Factory | Discovered new exit (range 15) 19296 | -6/Factory | Build established: Derelict-Gunner 19495 | -6/Factory | Lost 3 parts (1u2w) 19640 | -6/Factory | Discovered new exit (range 11) 19668 | -6/Factory | Entered Extension 19674 | -6/Extension | Disrupted transfer network 19815 | -6/Extension | Energy Cycler disabled 19815 | -6/Extension | Rescued a captive Derelict 19816 | -6/Extension | Rescued a captive Derelict 19816 | -6/Extension | Rescued a captive Derelict 19816 | -6/Extension | Rescued a captive Derelict 19816 | -6/Extension | Rescued a captive Derelict 19817 | -6/Extension | Rescued a captive Derelict 19817 | -6/Extension | Rescued a captive Derelict 19819 | -6/Extension | Rescued a captive Derelict 19820 | -6/Extension | Rescued a captive Derelict 19822 | -6/Extension | Rescued a captive Derelict 19824 | -6/Extension | Rescued a captive Derelict 19825 | -6/Extension | Build established: Scavenger-Gunner 19827 | -6/Extension | Rescued a captive Derelict 20004 | -6/Extension | Spotted B-75 Beast 20010 | -6/Extension | Destroyed B-75 Beast 20069 | -6/Extension | Discovered new exit (range 16) 20074 | -6/Extension | Extracted ID and sensor layout for unrecognized location from A7's data core 20185 | -6/Extension | Lost 3 parts (2n1w) 20317 | -6/Extension | Build established: Gunner 20643 | -6/Extension | Lost 7 allies 20745 | -6/Extension | Discovered new exit (range 10) 20747 | -6/Extension | Discovered new exit (range 6) 20797 | -6/Extension | Entered Cetus 20797 | -6/Cetus | Accompanied by 4 allies 20819 | -6/Cetus | Spotted Cetus Guard 20819 | -6/Cetus | Spotted Cetus Guard 20821 | -6/Cetus | Spotted Cetus Guard 20821 | -6/Cetus | Spotted Cetus Guard 20826 | -6/Cetus | Allies destroyed Cetus Guard 20830 | -6/Cetus | Destroyed Cetus Guard 20833 | -6/Cetus | Allies destroyed Cetus Guard 20834 | -6/Cetus | Destroyed Cetus Guard 20859 | -6/Cetus | Cetus Manufacturing Module disabled 20908 | -6/Cetus | Build established: Scavenger-Gunner 20944 | -6/Cetus | Discovered new exit (range 16) 20974 | -6/Cetus | Spotted Cetus Guard 20974 | -6/Cetus | Spotted Cetus Guard 20985 | -6/Cetus | Allies destroyed Cetus Guard 20985 | -6/Cetus | Spotted Cetus Guard 20994 | -6/Cetus | Spotted Cetus Guard 21008 | -6/Cetus | Destroyed Cetus Guard 21014 | -6/Cetus | Destroyed Cetus Guard 21024 | -6/Cetus | Lost 3 allies 21034 | -6/Cetus | Destroyed Cetus Guard 21043 | -6/Cetus | Discovered new exit (range 15) 21051 | -6/Cetus | Met Revision 17 21152 | -6/Cetus | Entered Archives 21380 | -6/Archives | Discovered new exit (range 16) 21403 | -6/Archives | Discovered new exit (range 16) 21425 | -6/Archives | Discovered new exit (range 16) 21564 | -6/Archives | Entered Hub_04(d) 21914 | -6/Hub_04(d) | First assault squad dispatched 22572 | -6/Hub_04(d) | Discovered new exit (range 7) 22584 | -6/Hub_04(d) | Disrupted transfer network 22711 | -6/Hub_04(d) | Network Hub disabled 22802 | -6/Hub_04(d) | Spotted Lightning 22907 | -6/Hub_04(d) | Spotted Lightning 22927 | -6/Hub_04(d) | Spotted Lightning 22932 | -6/Hub_04(d) | Core integrity fell below 50% 22936 | -6/Hub_04(d) | Spotted Lightning 22978 | -6/Hub_04(d) | DAS Turret deployed 22979 | -6/Hub_04(d) | Allies destroyed Lightning 22990 | -6/Hub_04(d) | Core integrity fell below 20% 22990 | -6/Hub_04(d) | System corruption reached 10% 22997 | -6/Hub_04(d) | Allies destroyed Lightning 23011 | -6/Hub_04(d) | Allies destroyed Lightning 23032 | -6/Hub_04(d) | Lost 9 parts (2p2n1u4w) 23267 | -6/Hub_04(d) | Network Hub disabled 23335 | -6/Hub_04(d) | Spotted Lightning 23338 | -6/Hub_04(d) | Spotted Lightning 23362 | -6/Hub_04(d) | Entered Factory 23362 | -5/Factory | Evolved 2 slots: Power x1, Utility x1 23440 | -5/Factory | Identified exit to DSF 23548 | -5/Factory | Fabricated P-70 Sage? 23597 | -5/Factory | Identified exit to Upper Caves 23631 | -5/Factory | Build established: Scavenger-Mutant 23669 | -5/Factory | Fabricated H-66 Slayer? 23813 | -5/Factory | Discovered new exit (range 9) 23827 | -5/Factory | Sage 6a assimilated hostile G-50 Soldier 23857 | -5/Factory | Sage 6a assimilated hostile G-50 Soldier 23908 | -5/Factory | Lost 5 allies 23948 | -5/Factory | Fabricated Combat Drone Bay? 23972 | -5/Factory | Build established: Scavenger-Gunner 24395 | -5/Factory | Lost 4 parts (2p1n1w) 24431 | -5/Factory | Identified exit to Factory 24717 | -5/Factory | Repaired Broken Neutron Cannon 24782 | -5/Factory | Repaired Centrium Heavy Treads 25097 | -5/Factory | Lost 3 parts (1n2u) 25162 | -5/Factory | First assault squad dispatched 25210 | -5/Factory | Entered Upper Caves 25222 | -5/Upper Caves | Ambushed by research squad 25617 | -5/Upper Caves | Attracted the attention of an 0b10 checkpoint 25985 | -5/Upper Caves | Learned 4 Factory zone layouts 26087 | -5/Upper Caves | Discovered new exit (range 8) 26734 | -5/Upper Caves | Entered another Upper Caves area 26735 | -5/Upper Caves | Discovered exit to Factory (range 14) 27191 | -5/Upper Caves | Attracted the attention of an 0b10 checkpoint 27529 | -5/Upper Caves | Learned Factory stockpile data 27622 | -5/Upper Caves | Discovered new exit (range 15) 27699 | -5/Upper Caves | Entered Zhirov 27699 | -5/Zhirov | Discovered new exit (range 3) 27730 | -5/Zhirov | Met Zhirov 27769 | -5/Zhirov | Learned location of Quarantine (-2) 27769 | -5/Zhirov | Learned location of Command (-1) 27796 | -5/Zhirov | Zhirov requested help retrieving the SGEMP Prototype 27909 | -5/Zhirov | Found Alien Artifact 27909 | -5/Zhirov | Identified Integrated Dissipator 27909 | -5/Zhirov | Installed Integrated Dissipator, increased core heat dissipation (+20) 27938 | -5/Zhirov | Found Alien Artifact 28027 | -5/Zhirov | Build established: Scavenger-Mutant 28222 | -5/Zhirov | Entered Proximity Caves 28230 | -4/Proximity Caves | Spotter reported a threat 28244 | -4/Proximity Caves | Spotter reported a threat 28353 | -4/Proximity Caves | Learned Research terminal intel 28483 | -4/Proximity Caves | Learned Research non-interactive machine intel 28493 | -4/Proximity Caves | Build established: Scavenger-Gunner 29315 | -4/Proximity Caves | Attracted the attention of an 0b10 checkpoint 29611 | -4/Proximity Caves | Discovered exit to Factory (range 30) 29829 | -4/Proximity Caves | Entered Factory 29829 | -4/Factory | Evolved 2 slots: Propulsion x1, Weapon x1 29830 | -4/Factory | Identified exit to Upper Caves 29951 | -4/Factory | Garrison activated, responded to threat 30079 | -4/Factory | Search patrols dispatched 30214 | -4/Factory | Lost 5 parts (1n1u3w) 30271 | -4/Factory | Found Quantum Capacitor 30402 | -4/Factory | Local machine network offline 30604 | -4/Factory | Entered Upper Caves 30653 | -4/Upper Caves | Encountered a Warlord checkpoint 30738 | -4/Upper Caves | Found DCF Scrap (12 items) 31348 | -4/Upper Caves | Attracted the attention of an 0b10 checkpoint 31582 | -4/Upper Caves | Discovered new exit (range 15) 31704 | -4/Upper Caves | Entered another Upper Caves area 31806 | -4/Upper Caves | Discovered new exit (range 5) 32062 | -4/Upper Caves | Attracted the attention of an 0b10 checkpoint 32195 | -4/Upper Caves | Learned Research terminal intel 32296 | -4/Upper Caves | Attracted the attention of an 0b10 outpost 32364 | -4/Upper Caves | Destroyed 7 combat bots 32444 | -4/Upper Caves | Lost 9 parts (1p1n1u6w) 33110 | -4/Upper Caves | Lost 3 parts (1p1n1w) 33339 | -4/Upper Caves | Spotted OX-LBL(f) 33340 | -4/Upper Caves | Encountered a Master Thief 33340 | -4/Upper Caves | Spotted JC-BNZ(f) 33340 | -4/Upper Caves | Spotted M4-1KB(f) 33341 | -4/Upper Caves | Encountered a Master Thief 33341 | -4/Upper Caves | Encountered a Master Thief 33341 | -4/Upper Caves | Spotted SV-A3V(f) 33342 | -4/Upper Caves | Encountered a Master Thief 33343 | -4/Upper Caves | Potential Leg stolen by Master Thief 33344 | -4/Upper Caves | Phase Gun stolen by Master Thief 33352 | -4/Upper Caves | Imp. Armor Integrity Analyzer stolen by Master Thief 33355 | -4/Upper Caves | Adv. Particle Charger stolen by Master Thief 33357 | -4/Upper Caves | Destroyed OX-LBL(f) 33406 | -4/Upper Caves | Discovered new exit (range 11) 33822 | -4/Upper Caves | Entered Warlord 33894 | -4/Warlord | System corruption cleaned by Quarantine Array 34365 | -4/Warlord | Visited the Vortex Lab 34376 | -4/Warlord | Warlord's base attacked by MAIN.C 34387 | -4/Warlord | Found Prototype Energy Gun 34387 | -4/Warlord | Identified Vortex Rifle 34393 | -4/Warlord | Found Prototype Energy Cannon 34393 | -4/Warlord | Identified Vortex Driver 34397 | -4/Warlord | Found Vortex Driver 34403 | -4/Warlord | Found Prototype Energy Gun 34403 | -4/Warlord | Identified Vortex Shotgun 34417 | -4/Warlord | Found Vortex Rifle 34499 | -4/Warlord | Met Warlord 34726 | -4/Warlord | Warlord forces counterattacked 34796 | -4/Warlord | Spotted Striker 34826 | -4/Warlord | Spotted Executioner 34830 | -4/Warlord | Spotted Executioner 34837 | -4/Warlord | Destroyed Executioner 34880 | -4/Warlord | Lost 29 allies 34882 | -4/Warlord | Found Exp. Core Analyzer 34889 | -4/Warlord | Spotted Striker 34900 | -4/Warlord | Spotted Executioner 34906 | -4/Warlord | Found Prototype Device 34906 | -4/Warlord | Identified Adv. Kinecellerator 34912 | -4/Warlord | Core integrity fell below 50% 34965 | -4/Warlord | Core integrity fell below 20% 34987 | -4/Warlord | Lost 5 allies 35000 | -4/Warlord | Lost 19 parts (3p8n5u3w) 35019 | -4/Warlord | Spotted B-86 Titan 35051 | -4/Warlord | Warlord base infiltrated, sounded retreat 35052 | -4/Warlord | Spotted B-90 Cyclops 35178 | -4/Warlord | Spotted Executioner 35187 | -4/Warlord | Discovered new exit (range 14) 35214 | -4/Warlord | Lost 8 allies 35251 | -4/Warlord | Entered Proximity Caves 35254 | -3/Proximity Caves | Spotter reported a threat 35254 | -3/Proximity Caves | Spotter reported a threat 35505 | -3/Proximity Caves | Attracted the attention of an 0b10 outpost 35506 | -3/Proximity Caves | Identified Transdimensional Reconstructor 35506 | -3/Proximity Caves | Warped through subspace 35753 | -3/Proximity Caves | Attracted the attention of an 0b10 checkpoint 35769 | -3/Proximity Caves | Destroyed by L-61 Swordsman with Power Sword Last Messages --------------- 35763_ Imp. Remote Force Field destroyed. 35763_ Plasma Rifle destroyed. 35763_ Slug penetrates Wall. 35765_ System corrupted: FCS attempts to trigger Vortex Driver. 35765_ System corrupted: Vortex Driver misfires. 35765_ Vortex penetrates G-73 Enforcer. 35765_ G-73 Enforcer suffers critical hit (Sunder). 35765_ G-73 Enforcer Hvy. Laser ripped off. 35765_ G-73 Enforcer destroyed. 35766_ Flexi-carbon Leg destroyed. 35766_ Slug penetrates L-61 Swordsman. 35766_ Destroyed Lgt. Antimatter Reactor. 35766_ Vortex penetrates L-61 Swordsman. 35766_ L-61 Swordsman suffers critical hit (Sunder). 35766_ L-61 Swordsman Flexi-carbon Leg ripped off. 35767_ Arm. Medium Treads destroyed. 35767_ Critical hit (Burn: +37). 35767_ Vortex Driver destroyed. 35769_ Critical hit (Destroy). 35769_ Helical Railgun destroyed. Map ----- +----------------------------------------------------+ | #????# #????????????????????????????????? | | #????# #????????????????????????????????? | | #????##### #????????????????????????????????? | | ?????????# ##????????????????????????????????? | | ?????????# ##????###??????????????????????????? | | ????????## ###### ##?????????????????????????? | | ######### ## #?????????????????????????? | | #?????????????????????????? | | ##?????????????????????????? | | ######## ##??????????????????????????? | | ???????####### ###???????????????????????????? | | ?????????????## #?????????????????????????????? | | ??????????????## #?????????????????????????????? | | ???????????????## #?????????????????????????????? | | ????????????????# ##????????????????????????????? | | ????????????????# ##???????????????????????????? | | ???????????????## ##???????????????? #????????? | | ??????????????## #??????????????? #?????????? | | ??????????????# #????????????? #??????????? | | ???????#??????# ###???????????? #????? ???? | | ???????# ???# ##???????????## ### ???? | | ???????# ## #######??????? ??????? | | ???????# # #???### ??????????? | | ???????### # #??# ??????????????? | | ?????????#??# # ## ### #?????????????????? | | ???????????# # # ## #;@ #???????????????????? | | ???????????# # ###### g;;l ##???????????????????? | | ??????????? #?????# g % ##????????????????????? | | ?????????? #??????# g ##?????????????????????? | | ?????????####???????## Ys;#??????????????????????? | | ?????????????????????# #;#??????????????????????? | | ????????????????????? # #??????????????????????? | | ???????????????????? # #??????????????????????? | | ??????????????????? #;#??????????????????????? | | ?????????????????? ??????????????????????? | | ????????????????? ??????????????????????? | | ???????????????? ##;#??????????????????????? | | ???????????????# ####??????????????????????? | | ??????????????? # ?????????????????????????? | | ?????????????? ?????????????????????????? | | ?????????????####### ?????????????????????????? | | ????????????????????# ?????????????????????????? | | ????????????????????# ?????????????????????????? | | ????????????????????# ?????????????????????????? | | ????????????????????## ?????????????????????????? | | ?????????????????????###?????????????????????????? | | ?????????????????????????????????????????????????? | | ?????????????????????????????????????????????????? | | ?????????????????????????????????????????????????? | | ?????????????????????????????????????????????????? | +----------------------------------------------------+ Best States ------------- Heat Dissipation 113 Energy Generation 45 Energy Capacity 575 Matter Stores 300 Matter Capacity 300 Sight Range 23 Terrain Scan Range 16 Terrain Scan Density 10 ECM Strength 2 Jamming Range 12 Cloak Strength 2 Base Temperature (-) 150 Armor Coverage 600 Weapon Cycling 30 Evasion (%) 66 Targeting Accuracy 8 Melee Accuracy 6 Core Analysis 8 Armor Integrity Analysis 30 Recoil Reduction 5 Kinecelleration 50 Offensive Hacking 24 Defensive Hacking 14 Item Schematics ----------------- Spread Laser | -9/Materials | Extracted Flight Unit | -9/Materials | Extracted VTOL Module | -9/Materials | Extracted Welding Torch | -9/Materials | Extracted Rocket Launcher | -9/Materials | Extracted Med. Storage Unit | -9/Materials | Extracted Imp. Terrain Scanner | -8/Materials | Scanalyzed Arm. Treads | -8/Materials | Scanalyzed Combat Drone Bay | -7/Data Miner | Free Lgt. Regenerative Plating | -7/Data Miner | Free Gravity Neutralizer | -7/Data Miner | Free Biomechanical Wings | -7/Data Miner | Free Ion Burst Cannon | -7/Data Miner | Free Hvy. Treads | -7/Data Miner | Free Imp. Shock Absorption System | -7/Data Miner | Free Imp. Plasma Cutter | -7/Data Miner | Free Proton Cannon | -7/Data Miner | Free Imp. Kinecellerator | -7/Data Miner | Free KE Penetrator | -7/Data Miner | Free Adv. Particle Charger | -7/Data Miner | Free Centrium Wheel | -7/Data Miner | Free Seismic Detector | -6/Factory | Scanalyzed Hpw. Tractor Beam | -6/Factory | Scanalyzed Assault Drone Bay | -5/Zhirov | Free Exp. Optical Array | -5/Zhirov | Free Imp. Arc Thrower | -5/Zhirov | Free Exp. Heat Sink | -5/Zhirov | Free Robot Schematics ------------------ M-13 Machinist | -10/Materials | Hacked Y-45 Defender | -9/Materials | Hacked Y-54 Guardian | -7/Data Miner | Free H-55 Commando | -7/Data Miner | Free A-15 Conveyor | -7/Data Miner | Free Fabricated ------------ P-70 Sage | x2 | -5/Factory | Preloaded H-66 Slayer | x2 | -5/Factory | Preloaded Combat Drone Bay | x1 | -5/Factory Alien Tech Used ----------------- Integrated Dissipator Transdimensional Reconstructor Achievements -------------- A Powerful Ally? Charge!!! Challenges ------------ None Game ------ Seed ForceThiefAutopenetrator Manual? 0 Play Time 05:29:15 Cumulative 153.6 hours Start 2025.01.18 @ 14:42:54 End 2025.01.19 @ 00:18:21 Sessions 7 Manual Loads 0 Difficulty Rogue Special Mode None Game No. 73 Rogue 73 Adventurer 0 Explorer 0 Win Type - Total 0 Types 0/0/0/0/0/0/0/0/0 Lore% 52 Gallery% 70 Achievement% 57 Wizard Run 0 Options --------- Layout 0 ASCII 0 Keyboard 0 Movement Mouse Keybinds 0 Fullscreen 1 Font 24/Smallcaps Map View 183x50 Zoom Use 0% Tactical HUD 1 Map Filters NONE Filters NONE Steam 0 RUN: 749a6d0e-e710-4959-b55c-9fd8094a9f2d